[Event "Accentus Young Masters 2019"]
[Site "Bad Ragaz"]
[Date "2019.03.02"]
[Round "4.1"]
[White "Wagner, Dennis"]
[Black "Yankelevich, Lev"]
[Result "0-1"]
[ECO "E71"]
[WhiteElo "2587"]
[BlackElo "2445"]
[Annotator "ChessBase"]
[PlyCount "56"]
[EventDate "2019.02.27"]
[EventType "tourn"]
[EventCountry "SUI"]
[SourceTitle "playchess.com"]
[Source "ChessBase"]
[SourceQuality "1"]
[TimeControl "40/5400+30:1800+30"]

1. d4 {[%emt 0:00:00]} Nf6 {[%emt 0:00:00]} 2. c4 {[%emt 0:00:00]} g6 {[%emt 0:00:00]} 3. Nc3 {[%emt 0:00:00]} Bg7 {[%emt 0:00:00]} 4. e4 {[%emt 0:00:04]} d6 {[%emt 0:00:00]} 5. h3 {[%emt 0:00:21]} Nbd7 {[%emt 0:00:00]} 6. Be3 {[%emt 0:00:46]} e5 {[%emt 0:00:00]} 7. d5 {[%emt 0:05:31]} Nc5 {[%emt 0:00:00]} 8. Qc2 {[%emt 0:00:38]} O-O {[%emt 0:00:18]} 9. g4 {[%emt 0:06:17]} c6 {[%emt 0:00:02]} 10. b4 {[%emt 0:10:09]} cxd5 {[%emt 0:05:06]} 11. cxd5 {[%emt 0:00:54]} Ncxe4 {[%emt 0:00:35]} 12. Nxe4 {[%emt 0:12:25]} Nxd5 {[%emt 0:01:30]} 13. Bd2 {[%emt 0:06:50]} Nf4 {[%emt 0:04:26]} 14. Ne2 {[%emt 0:11:59]} d5 {[%emt 0:06:05]} 15. Nc5 {[%emt 0:00:09]} b6 {[%emt 0:07:43]} 16. Nb3 {[%emt 0:00:11]} Bb7 {[%emt 0:05:38]} 17. Nxf4 {[%emt 0:17:46]} exf4 {[%emt 0:00:07]} 18. Bg2 {[%emt 0:00:04]} f3 {[%emt 0:02:06]} 19. Bf1 {[%emt 0:12:29]} Re8+ {[%emt 0:04:30]} 20. Kd1 {[%emt 0:00:02]} Rc8 {[%emt 0:00:05]} 21. Qd3 {[%emt 0:01:10]} Bxa1 {[%emt 0:03:00]} 22. Nxa1 {[%emt 0:00:02]} d4 {[%emt 0:00:03]} 23. Qa3 {[%emt 0:06:00]} Re2 {[%emt 0:00:51]} 24. Rg1 {[%emt 0:00:32]} Qe8 {[%emt 0:05:18]} 25. Nc2 {[%emt 0:02:27]} Qe4 {[%emt 0:03:21]} 26. Qb2 {[%emt 0:00:02]} Qd3 {[%emt 0:04:17]} 27. Bxe2 {[%emt 0:00:52]} fxe2+ {[%emt 0:00:06]} 28. Kc1 {[%emt 0:00:02]} Be4 {[%emt 0:00:07]} 0-1

[Event "Accentus Young Masters 2019"]
[Site "Bad Ragaz"]
[Date "2019.03.02"]
[Round "4.4"]
[White "Albornoz Cabrera, Carlos Daniel"]
[Black "Horvath, Dominik"]
[Result "1-0"]
[ECO "A06"]
[WhiteElo "2577"]
[BlackElo "2419"]
[Annotator "ChessBase"]
[PlyCount "57"]
[EventDate "2019.02.27"]
[EventType "tourn"]
[EventCountry "SUI"]
[SourceTitle "playchess.com"]
[Source "ChessBase"]
[SourceQuality "1"]
[TimeControl "40/5400+30:1800+30"]

1. Nf3 {[%emt 0:00:00]} d5 {[%emt 0:00:00]} 2. c4 {[%emt 0:00:10]} e6 {[%emt 0:00:03]} 3. d4 {[%emt 0:00:10]} a6 {[%emt 0:00:12]} 4. Nbd2 {[%emt 0:00:11]} c5 {[%emt 0:10:30]} 5. g3 {[%emt 0:00:37]} cxd4 {[%emt 0:01:20]} 6. Bg2 {[%emt 0:05:15]} Nf6 {[%emt 0:04:39]} 7. O-O {[%emt 0:00:50]} Nc6 {[%emt 0:01:23]} 8. cxd5 {[%emt 0:00:20]} Nxd5 {[%emt 0:07:55]} 9. Nb3 {[%emt 0:01:15]} Be7 {[%emt 0:08:02]} 10. Nfxd4 {[%emt 0:00:16]} Nxd4 {[%emt 0:00:06]} 11. Nxd4 {[%emt 0:00:07]} O-O {[%emt 0:01:32]} 12. e4 {[%emt 0:00:20]} Nb4 {[%emt 0:10:00]} 13. Be3 {[%emt 0:01:32]} Bd7 {[%emt 0:04:31]} 14. Qb3 {[%emt 0:09:29]} e5 {[%emt 0:02:51]} 15. Nf5 {[%emt 0:00:47]} Be6 {[%emt 0:00:07]} 16. Qc3 {[%emt 0:10:53]} Rc8 {[%emt 0:11:55]} 17. Bb6 {[%emt 0:02:57]} Qe8 {[%emt 0:00:34]} 18. Nxe7+ {[%emt 0:09:08]} Qxe7 {[%emt 0:00:05]} 19. Qxe5 {[%emt 0:00:06]} Rc6 {[%emt 0:00:50]} 20. Qa5 {[%emt 0:23:03]} Bxa2 {[%emt 0:04:43]} 21. Rfd1 {[%emt 0:01:37]} Rfc8 {[%emt 0:14:17]} 22. e5 {[%emt 0:02:38]} Bb3 {[%emt 0:01:35]} 23. Rd8+ {[%emt 0:03:24]} Rxd8 {[%emt 0:00:04]} 24. Bxd8 {[%emt 0:00:07]} Qf8 {[%emt 0:01:59]} 25. Bxc6 {[%emt 0:03:47]} Nxc6 {[%emt 0:00:03]} 26. Qc3 {[%emt 0:00:11]} Bd5 {[%emt 0:00:38]} 27. Bb6 {[%emt 0:01:28]} Qc8 {[%emt 0:01:16]} 28. Rd1 {[%emt 0:00:40]} Be4 {[%emt 0:01:47]} 29. Rd8+ {[%emt 0:00:24]} 1-0

[Event "Accentus Young Masters 2019"]
[Site "Bad Ragaz"]
[Date "2019.03.07"]
[Round "9.2"]
[White "Kurmann, Oliver"]
[Black "Horvath, Dominik"]
[Result "1/2-1/2"]
[ECO "C50"]
[WhiteElo "2454"]
[BlackElo "2419"]
[Annotator "ChessBase"]
[PlyCount "80"]
[EventDate "2019.02.27"]
[EventType "tourn"]
[EventCountry "SUI"]
[SourceTitle "playchess.com"]
[Source "ChessBase"]
[SourceQuality "1"]
[TimeControl "40/5400+30:1800+30"]

1. e4 {[%emt 0:00:00]} e5 {[%emt 0:00:00]} 2. Nf3 {[%emt 0:00:00]} Nc6 {[%emt 0:00:00]} 3. Bc4 {[%emt 0:00:00]} Bc5 {[%emt 0:00:00]} 4. O-O {[%emt 0:00:02]} Nf6 {[%emt 0:00:06]} 5. d3 {[%emt 0:00:07]} d6 {[%emt 0:00:46]} 6. c3 {[%emt 0:00:10]} h6 {[%emt 0:00:27]} 7. Re1 {[%emt 0:04:10]} O-O {[%emt 0:04:43]} 8. Nbd2 {[%emt 0:07:18]} a5 {[%emt 0:02:43]} 9. Nf1 {[%emt 0:01:06]} Be6 {[%emt 0:00:29]} 10. Bb5 {[%emt 0:01:45]} Bd7 {[%emt 0:10:23]} 11. Ba4 {[%emt 0:08:35]} Re8 {[%emt 0:08:49]} 12. Ng3 {[%emt 0:02:55]} Qb8 {[%emt 0:01:07]} 13. d4 {[%emt 0:22:17]} Bb6 {[%emt 0:02:06]} 14. d5 {[%emt 0:01:13]} Ne7 {[%emt 0:01:53]} 15. Nh5 {[%emt 0:02:12]} Nxh5 {[%emt 0:01:28]} 16. Bxd7 {[%emt 0:00:13]} Rd8 {[%emt 0:00:02]} 17. Bg4 {[%emt 0:10:14]} Nf6 {[%emt 0:00:23]} 18. Bh3 {[%emt 0:00:06]} Qa7 {[%emt 0:00:24]} 19. Be3 {[%emt 0:00:39]} a4 {[%emt 0:06:59]} 20. c4 {[%emt 0:01:24]} Ng6 {[%emt 0:07:37]} 21. g3 {[%emt 0:00:21]} Nf8 {[%emt 0:02:19]} 22. Nd2 {[%emt 0:11:30]} Bxe3 {[%emt 0:09:47]} 23. Rxe3 {[%emt 0:00:01]} N8d7 {[%emt 0:00:38]} 24. Rb1 {[%emt 0:01:07]} Qa5 {[%emt 0:03:00]} 25. Bf1 {[%emt 0:04:21]} Nc5 {[%emt 0:00:46]} 26. Qe2 {[%emt 0:02:01]} Rdb8 {[%emt 0:03:55]} 27. Nf3 {[%emt 0:01:05]} Ra6 {[%emt 0:04:21]} 28. Ne1 {[%emt 0:02:49]} Rb6 {[%emt 0:02:16]} 29. Nc2 {[%emt 0:00:47]} Na6 {[%emt 0:00:15]} 30. Ra3 {[%emt 0:02:31]} Nb4 {[%emt 0:04:04]} 31. Ne1 {[%emt 0:01:53]} Ra8 {[%emt 0:01:52]} 32. Qe3 {[%emt 0:00:47]} Ng4 {[%emt 0:01:31]} 33. Qe2 {[%emt 0:00:09]} Nf6 {[%emt 0:02:03]} 34. Qe3 {[%emt 0:00:01]} Qc5 {[%emt 0:06:09]} 35. Qxc5 {[%emt 0:00:16]} dxc5 {[%emt 0:00:03]} 36. f3 {[%emt 0:00:47]} Ne8 {[%emt 0:00:54]} 37. Kf2 {[%emt 0:03:51]} Nd6 {[%emt 0:00:20]} 38. Ke3 {[%emt 0:00:09]} g6 {[%emt 0:01:41]} 39. Be2 {[%emt 0:03:56]} f5 {[%emt 0:01:52]} 40. Rc1 {[%emt 0:00:15]} Rba6 {[%emt 0:01:49]} 1/2-1/2

[Event "Accentus Young Masters 2019"]
[Site "Bad Ragaz"]
[Date "2019.03.07"]
[Round "9.3"]
[White "Yankelevich, Lev"]
[Black "Stijve, Theo"]
[Result "1/2-1/2"]
[ECO "E06"]
[WhiteElo "2445"]
[BlackElo "2333"]
[Annotator "ChessBase"]
[PlyCount "67"]
[EventDate "2019.02.27"]
[EventType "tourn"]
[EventCountry "SUI"]
[SourceTitle "playchess.com"]
[Source "ChessBase"]
[SourceQuality "1"]
[TimeControl "40/5400+30:1800+30"]

1. d4 {[%emt 0:01:36]} Nf6 {[%emt 0:00:11]} 2. Nf3 {[%emt 0:00:04]} d5 {[%emt 0:00:11]} 3. c4 {[%emt 0:00:36]} e6 {[%emt 0:00:08]} 4. g3 {[%emt 0:00:10]} Be7 {[%emt 0:00:07]} 5. Bg2 {[%emt 0:00:04]} O-O {[%emt 0:00:10]} 6. O-O {[%emt 0:00:02]} dxc4 {[%emt 0:00:10]} 7. Qc2 {[%emt 0:00:02]} b6 {[%emt 0:00:23]} 8. Bg5 {[%emt 0:00:03]} Nd5 {[%emt 0:00:34]} 9. Bxe7 {[%emt 0:00:04]} Qxe7 {[%emt 0:00:16]} 10. Ne5 {[%emt 0:00:04]} c5 {[%emt 0:05:48]} 11. dxc5 {[%emt 0:00:11]} Qxc5 {[%emt 0:01:15]} 12. Qxc4 {[%emt 0:00:03]} Qxc4 {[%emt 0:14:10]} 13. Nxc4 {[%emt 0:00:05]} Nd7 {[%emt 0:00:31]} 14. Rd1 {[%emt 0:07:26]} Ba6 {[%emt 0:04:54]} 15. Bxd5 {[%emt 0:01:16]} exd5 {[%emt 0:00:27]} 16. Rxd5 {[%emt 0:00:04]} Bxc4 {[%emt 0:01:07]} 17. Rxd7 {[%emt 0:00:03]} Rfd8 {[%emt 0:06:42]} 18. Rxd8+ {[%emt 0:00:16]} Rxd8 {[%emt 0:00:07]} 19. Nc3 {[%emt 0:00:21]} Rd2 {[%emt 0:00:37]} 20. b3 {[%emt 0:00:37]} Ba6 {[%emt 0:06:24]} 21. Rc1 {[%emt 0:01:20]} g6 {[%emt 0:02:16]} 22. Kf1 {[%emt 0:02:44]} Rb2 {[%emt 0:07:21]} 23. Ke1 {[%emt 0:01:03]} b5 {[%emt 0:02:14]} 24. Nd5 {[%emt 0:00:05]} Bb7 {[%emt 0:12:40]} 25. Nf6+ {[%emt 0:00:13]} Kg7 {[%emt 0:03:49]} 26. Ne8+ {[%emt 0:00:05]} Kf8 {[%emt 0:05:19]} 27. Nd6 {[%emt 0:00:08]} Bg2 {[%emt 0:00:58]} 28. f3 {[%emt 0:07:47]} Bh3 {[%emt 0:01:40]} 29. g4 {[%emt 0:00:33]} h5 {[%emt 0:02:06]} 30. gxh5 {[%emt 0:06:51]} gxh5 {[%emt 0:07:31]} 31. Nxb5 {[%emt 0:00:27]} Rxa2 {[%emt 0:00:31]} 32. Rc5 {[%emt 0:00:02]} Bd7 {[%emt 0:05:03]} 33. Nc3 {[%emt 0:03:56]} Ra1+ {[%emt 0:01:36]} 34. Kf2 {[%emt 0:04:41]} 1/2-1/2